Cogmind - Beta 16 --- EXPLORER MODE // 2025.11.17 @ 11:16:55 Player: K.K.Y. Result: Destroyed by 1U-WP3(R) with Subdweller Laser Performance ------------- Evolutions (0) 0 Regions Visited (2) 400 Robots Destroyed (25) 125 Value Destroyed (691) 691 Prototype IDs (0) 0 Alien Tech Used (0) 0 Bonus (0) 0 TOTAL SCORE: 1216 Bonus ------- None Cogmind --------- Core Integrity 0/250 Matter 253/300 Energy 7/100 System Corruption 0% Temperature Cool (6) Movement Core (450) Ox8 Location -10/Subcaves Parts ------- > --- POWER (1) -------- (None) > --- PROPULSION (3) --- (None) > --- UTILITY (2) ------ Heat Sink Large Storage Unit > --- WEAPON (2) ------- Medium Laser Beam Rifle > --- INVENTORY (15) --- Machine Analyzer Scrap Shield Peak State ------------ > --- POWER ------------ Ion Engine > --- PROPULSION ------- Light Treads Light Treads Light Treads > --- UTILITY ---------- Large Storage Unit Light Armor Plating > --- WEAPON ----------- Medium Laser Mining Laser > --- INVENTORY -------- Medium Storage Unit Machine Analyzer Scrap Shield Medium Laser Beam Cannon [Rating: 9] Favorites ----------- Power Ion Engine Engine Ion Engine Propulsion Light Treads Treads Light Treads Utility Large Storage Unit Device Heat Sink Storage Large Storage Unit Protection Light Armor Plating Weapon Medium Laser Energy Gun Medium Laser Energy Cannon Beam Cannon Ballistic Gun Heavy Assault Rifle Special Weapon Mining Laser Build | -11 -10 -10 ------- Run | Yrd Mat Sub Slots Evolved 1 | . 1 . Power . | . . . Propulsion 1 | . 1 . Utility . | . . . Weapon . | . . . Parts Attached 14 | 6 3 5 Power 1 | 1 . . Engine 1 | 1 . . Core . | . . . Reactor . | . . . Propulsion 3 | 2 1 . Treads 3 | 2 1 . Leg . | . . . Wheel . | . . . Hover . | . . . Flight . | . . . Utility 4 | 1 2 1 Device 1 | . . 1 Storage 2 | 1 1 . Processor . | . . . Hackware . | . . . Protection 1 | . 1 . Artifact . | . . . Weapon 6 | 2 . 4 Energy Gun 3 | 2 . 1 Energy Cannon 1 | . . 1 Ballistic Gun 1 | . . 1 Ballistic Cannon . | . . . Launcher . | . . . Special Weapon 1 | . . 1 Impact Weapon . | . . . Slashing Weapon . | . . . Piercing Weapon . | . . . Special Melee Weapon . | . . . Unidentified Prototypes . | . . . Parts Lost 9 | . . 9 Power 1 | . . 1 Propulsion 3 | . . 3 Utility 1 | . . 1 Weapon 4 | . . 4 Highest Loss Streak 4 | . . 4 To Critical Strikes . | . . . Average Backups 3 | 2 3 4 Power . | . . . Propulsion . | . . . Utility 1 | . 1 2 Weapon 1 | . 1 2 Tool/Special . | . . . Unused Backups 5 | 1 2 2 Power . | . . . Propulsion . | . . . Utility 4 | . 2 2 Weapon 1 | 1 . . Tool/Special . | . . . Average Slot Usage (%) 91 | . 92 91 Engine 10 | . 12 9 Treads 34 | . 35 33 Storage 12 | . 13 12 Protection 7 | . 5 9 Energy Gun 17 | . 25 12 Energy Cannon 1 | . . 2 Special Weapon 5 | . . 9 Peak Build Rating 9 | 6 8 9 Average Rating 7 | 3 7 7 On Entrance 4 | . 6 8 Avg Prop Armor Cover (%) . | . . . Naked Turns . | . . . Heaviest Build 39 | 19 39 32 Greatest Support 60 | 40 60 60 Greatest Overweight (x) . | . . . Average Overweight (x) . | . . . Largest Inventory Capacity 15 | 10 15 15 Average Capacity 13 | 6 12 15 Most Carried 7 | 5 6 7 Average Carried 3 | 2 3 4 Final Capacity 15 | 10 15 15 Final Carried 3 | . 3 3 Class Distribution -------------------- 100% | Hacker-Mutant Dominant Class ---------------- Hacker-Mutant | -10/Materials Hacker-Mutant | -10/Subcaves Resources | -11 -10 -10 ----------- Run | Yrd Mat Sub Matter Collected 329 | 89 201 39 Remotely . | . . . Salvage Created 647 | . 313 334 Parts 36 | . 17 19 Haulers Intercepted . | . . . Recyclers Shooed . | . . . Parts Field Recycled . | . . . Retrieved Matter . | . . . Parts Self-Destructed . | . . . Prevented . | . . . Parts Restored . | . . . Kills | -11 -10 -10 ------- Run | Yrd Mat Sub Combat Hostiles Destroyed 20 | . 9 11 Guns 16 | . 9 7 Cannons 3 | . . 3 Classes Destroyed 6 | . 4 2 Mechanic 1 | . 1 . Turret 2 | . . 2 Watcher 2 | . 2 . Swarmer 7 | . 4 3 Grunt 5 | . 5 . Subdweller 8 | . . 8 Best Kill Streak 5 | . 4 5 Combat Bots Only 3 | . 3 3 Max Kills in Single Turn 2 | . 2 1 Gunslinging 1 | . 1 . Exploded . | . . . Melee . | . . . Uniques/NPCs Destroyed . | . . . Combat | -11 -10 -10 -------- Run | Yrd Mat Sub Hostile Shots Fired 174 | . 46 128 Missed 46 | . 8 38 Hits 128 | . 38 90 Projectile 128 | . 38 90 Critical Strikes 1 | . . 1 Damage Taken 1258 | . 235 1023 Core 254 | . 31 223 Absorbed by Shields . | . . . Ignored by Resistances 778 | . 158 620 Core Remaining (%) 100 | 100 . . Volleys Fired 98 | . 25 73 Largest 2 | . 2 2 Hottest 160 | . 100 160 Shots Fired 161 | . 50 111 Gun 127 | . 50 77 Cannon 16 | . . 16 Launcher . | . . . Special 18 | . . 18 Kinetic 9 | . . 9 Thermal 152 | . 50 102 Explosive . | . . . Electromagnetic . | . . . Robot Hit Streak 34 | . 26 34 Robot Miss Streak 4 | . 4 2 Penetration Max . | . . . Secondary Targets 3 | . 3 . Max Gunslinging Chain 1 | . 1 . Shots Hit Robots 122 | . 39 83 Core Hits 45 | . 20 25 Critical Kills . | . . . Critical Parts Destroyed . | . . . Critical Strikes 11 | . 5 6 Burn 11 | . 5 6 Melee Attacks . | . . . Impact . | . . . Slashing . | . . . Piercing . | . . . Sneak Attacks . | . . . Combat Hostiles . | . . . Follow-up Attacks . | . . . Damage Inflicted 1645 | . 485 1160 Guns 1292 | . 485 807 Cannons 209 | . . 209 Explosions . | . . . Melee . | . . . Ramming . | . . . Kinetic 104 | . . 104 Thermal 1541 | . 485 1056 Explosive . | . . . Electromagnetic . | . . . Impact . | . . . Slashing . | . . . Piercing . | . . . Highest Corruption . | . . . Average Corruption . | . . . Corruption Purged . | . . . Corruption Blocked . | . . . Overload Shots . | . . . Overflow Damage . | . . . Projectiles . | . . . Explosions . | . . . Melee . | . . . Knockbacks . | . . . Impact . | . . . Kinetic . | . . . Secondary . | . . . Self-Inflicted Damage . | . . . Shots . | . . . Rammed . | . . . Targets Rammed . | . . . Kicked . | . . . Crushed . | . . . Highest Temperature 375 | . 375 14 Average Temperature 142 | . 152 4 Received Heat Transfer 513 | . 153 360 Effects 3 | . 3 . Interference 2 | . 2 . Damage (minor) 1 | . 1 . Siege Activations . | . . . Martial Activations . | . . . Shielding Activations . | . . . Robots Disrupted . | . . . Combat Hostiles . | . . . Robots Corrupted . | . . . Combat Hostiles . | . . . Parts Fried . | . . . Impact Corruptions . | . . . Robots Melted 1 | . . 1 Combat Hostiles 1 | . . 1 Parts Melted 11 | . 7 4 Heat Transferred 5073 | . 1813 3260 Parts Sabotaged . | . . . Parts Stolen . | . . . Parts Stripped . | . . . Power Chain Reactions . | . . . Alert | -11 -10 -10 ------- Run | Yrd Mat Sub Maximum Alert Level . | . . . Low Security (%) 100 | 100 100 . Level 1 . | . . . Level 2 . | . . . Level 3 . | . . . Level 4 . | . . . Level 5 . | . . . High Security . | . . . Max Security . | . . . Peak Influence 76 | . 76 . Initial . | . . . Average 13 | . 15 . Influence Increases 407 | . 247 160 Destroy 0b10 Robot/C 280 | . 180 100 Destroy 0b10 Robot/NC 15 | . 15 . Destroy Leader 44 | . 44 . Successful Hack 8 | . 8 . Lose Combat Pursuer 60 | . . 60 Influence Decreases 407 | . 227 180 Entered New Map 13 | . . 13 Time Decay 394 | . 227 167 Squads Dispatched . | . . . Investigation . | . . . Extermination . | . . . Reinforcement . | . . . Assault . | . . . Garrison . | . . . Intercept . | . . . Searches Triggered . | . . . Construction Impeded . | . . . Haulers Reinforced . | . . . Active Scanning Responses . | . . . Cargo Convoy Interrupts . | . . . Stealth | -11 -10 -10 --------- Run | Yrd Mat Sub Distress Signals 1 | . 1 . Communications Jammed . | . . . Distress Signals . | . . . Times Spotted 29 | . 14 15 Peak Tracking Total 5 | . 5 4 Tactical Retreats 2 | . . 2 Traps | -11 -10 -10 ------- Run | Yrd Mat Sub Traps Triggered . | . . . Indirectly . | . . . Trap Hack Attempts . | . . . Triggered . | . . . Disarmed . | . . . Reprogrammed . | . . . Reused . | . . . Traps Extracted . | . . . Installed . | . . . Triggered . | . . . Machines | -11 -10 -10 ---------- Run | Yrd Mat Sub Machines Disabled . | . . . Max in Single Turn . | . . . Machines Repaired . | . . . Machines Dismantled . | . . . Machines Sabotaged . | . . . Overloaded Fab Kills . | . . . Hacking | -11 -10 -10 --------- Run | Yrd Mat Sub Machines Accessed 4 | . 4 . Terminals 4 | . 4 . Fabricators . | . . . Repair Stations . | . . . Recycling Units . | . . . Scanalyzers . | . . . Garrison Access . | . . . Total Hacks 9 | . 9 . Successful 7 | . 7 . Failed 2 | . 2 . Catastrophic . | . . . Database Lockouts . | . . . Manual 3 | . 3 . Terminals 9 | . 9 . Fabricators . | . . . Repair Stations . | . . . Recycling Units . | . . . Scanalyzers . | . . . Garrison Access . | . . . Terminal Hacks 7 | . 7 . Locate Traps 1 | . 1 . Patrol Status 1 | . 1 . Hauler Manifests 1 | . 1 . Zone Layout 4 | . 4 . Fabricator Hacks . | . . . Repair Station Hacks . | . . . Recycling Unit Hacks . | . . . Scanalyzer . | . . . Garrison Access Hacks . | . . . Unauthorized Hacks . | . . . Terminals . | . . . Fabricators . | . . . Repair Stations . | . . . Recycling Units . | . . . Scanalyzers . | . . . Garrison Access . | . . . Data Cores Recovered . | . . . Used . | . . . Hacking Detections 1 | . 1 . Full Trace Events . | . . . Feedback Events . | . . . Feedback Blocked . | . . . Robot Schematics Acquired . | . . . Robots Built . | . . . Authchips . | . . . Time . | . . . Total Robot Build Rating . | . . . Part Schematics Acquired . | . . . Parts Built . | . . . Authchips . | . . . Time . | . . . Total Part Build Rating . | . . . Part Studies Acquired . | . . . Parts Repaired . | . . . Time . | . . . Parts Recycled . | . . . Recycled Matter . | . . . Retrieved Matter . | . . . Retrieved Components . | . . . Parts Scanalyzed . | . . . Part Schematics Acquired . | . . . Parts Damaged . | . . . Bothacking | -11 -10 -10 ------------ Run | Yrd Mat Sub Used RIF Installer . | . . . Robots Hacked . | . . . Non-combat . | . . . Combat . | . . . Robot Hacks Applied . | . . . Relay Couplers Released . | . . . Fabnet Peak Effective % . | . . . Robots Rewired . | . . . Allies Hacked . | . . . Hacks Repelled . | . . . Allies | -11 -10 -10 -------- Run | Yrd Mat Sub Total Allies . | . . . Largest Group . | . . . Highest-Rated Group . | . . . Highest-Rated Ally . | . . . Total Orders . | . . . Ally Attacks . | . . . Total Damage . | . . . Kills . | . . . Allies Corrupted . | . . . Allies Melted . | . . . Intel | -11 -10 -10 ------- Run | Yrd Mat Sub Active Infowar (turns) . | . . . Robot Analysis Total . | . . . Derelict Logs Recovered . | . . . Drone Launches . | . . . Drone Recoveries . | . . . Exploration | -11 -10 -10 ------------- Run | Yrd Mat Sub Turns Passed 1906 | 60 721 1125 Spaces Moved 861 | 33 320 508 Core 12 | 12 . . Treads 849 | 21 320 508 Legs . | . . . Wheels . | . . . Hover . | . . . Flight . | . . . Fastest Speed 50 | 50 160 160 Average Speed 158 | 120 160 160 Slowest Speed 160 | 160 160 160 Overloaded Moves . | . . . Propulsion Burnouts . | . . . Robots Hopped . | . . . Potential Cave-ins . | . . . Cave-ins Triggered . | . . . Exploration Rate (%) 35 | 4 67 35 Regions Visited 2 Branch Regions 1 Pre-discovered Areas . | . . . Known Exits Taken 2 | 1 1 . Unknown Exits Taken . | . . . Scrap Searched . | . . . Spaces Dug . | . . . Terrain Destroyed . | . . . Melee . | . . . Projectile . | . . . AOE . | . . . Terrain Rammed . | . . . Walls Destroyed . | . . . Machines Disabled . | . . . Actions | -11 -10 -10 --------- Run | Yrd Mat Sub Total 1206 | 53 481 672 Wait 210 | 9 124 77 Move 859 | 32 319 508 Hop . | . . . Pick Up 17 | 5 7 5 Fast Attach 2 | 2 . . Attach 12 | 4 3 5 Detach 1 | . 1 . Swap 3 | . . 3 Drop 4 | 1 2 1 Fire 98 | . 25 73 Melee . | . . . Ram . | . . . Kick . | . . . Crush . | . . . Escape Stasis . | . . . Rewire . | . . . Trap . | . . . Miscellaneous . | . . . Route ------- -11/Scrapyard -10/Materials (discovered 3 exits: *Mat / *Min / *Sub) -10/Subcaves (discovered 2 exits: *Mat / *Rec) History --------- Turn | Location | Event 8 | -11/Scrapyard | Identified exit to Materials 8 | -11/Scrapyard | Discovered exit to Materials (range 16) 61 | -11/Scrapyard | Entered Materials 61 | -10/Materials | Evolved 1 slot: Propulsion x1 178 | -10/Materials | Identified exit to Mines 178 | -10/Materials | Discovered exit to Mines (range 6) 301 | -10/Materials | Build established: Hacker-Mutant 667 | -10/Materials | Identified exit to Subcaves 667 | -10/Materials | Discovered exit to Subcaves (range 7) 692 | -10/Materials | Identified exit to Materials 692 | -10/Materials | Discovered exit to Materials (range 13) 782 | -10/Materials | Entered Subcaves 783 | -10/Subcaves | Approached by a straggling Scientist 869 | -10/Subcaves | Identified exit to Recycling 869 | -10/Subcaves | Discovered exit to Recycling (range 10) 984 | -10/Subcaves | Identified exit to Materials 984 | -10/Subcaves | Discovered exit to Materials (range 7) 1371 | -10/Subcaves | Shifting Twisted Machinery released Sub. Laser 1405 | -10/Subcaves | Shifting Twisted Machinery released Scrap Shield 1560 | -10/Subcaves | A swath of the cavern ceiling suddenly collapsed 1705 | -10/Subcaves | Lost 4 parts (1p1n1u1w) 1734 | -10/Subcaves | A swath of the cavern ceiling suddenly collapsed 1867 | -10/Subcaves | Core integrity fell below 50% 1875 | -10/Subcaves | Core integrity fell below 20% 1897 | -10/Subcaves | Lost 3 parts (2n1w) 1907 | -10/Subcaves | Destroyed by 1U-WP3(R) with Subdweller Laser Last Messages --------------- 01769_ Subatomizers dissect the Lgt. Assault Rifle. 01770_ Acquired Hvy. Assault Rifle. 01771_ Acquired 18 matter. 01776_ Acquired 2 matter. 01782_ Subatomizers dissect the Beam Rifle. 01783_ Acquired Beam Rifle. 01790_ Acquired Heat Sink. 01792_ Subatomizers dissect the Lgt. Assault Rifle. 01832_ Acquired 9 matter. 01859_ V1-GDZ(R): "SUBHATE!" 01862_ Lgt. Treads destroyed. 01864_ Mining Laser destroyed. 01866_ Lgt. Treads destroyed. 01887_ V1-GDZ(R) destroyed. 01900_ Beam Cannon destroyed. 01902_ Hvy. Assault Rifle destroyed. 01906_ 1U-WP3(R) affixes Scrap Shield Fragment to Scrap Shield. Map ----- +----------------------------------------------------+ | ## #????????????????????????????????????? | | #" #????????????????????????????????????????? | | "# ####????????????????????????????????????????? | | "#####????#??????????????????????????????????????? | | """"######"?##???????????????????????????????????? | | "#""## ""##"#???????????????????????????????????? | | "#"### " #???????????????????????????????????? | | "#### #???????????????????????????????????? | | #### ##??????????????????????????????????? | | ##?# #??????????????????????????????????? | | #### #??????????????????????????????????? | | ##??????????????????????????????????? | | ## ##???????????????????????????????????? | | ## #????????????????????????????????????? | | ##????????????????????????????????????? | | #?????????????????????????????????????? | | ###???????????????????????????????????? | | ## * #???????????????????????????????????? | | # ## [ #???????????????????????????????????? | | ####% ###???????#########???????????????????? | | ##??# #???????## " #???????????????????? | | # #???# ##???????# ""????????????????????? | | ???# ######### "??????????????????????? | | ???# # # #""### #???????????????????????? | | ###???## """### ##??????????????????????? | | #???????# " ### @####???????????????????? | | ????????## # # ## R%""#???????????????????? | | ?????????#########" ### "##"#???????????????????? | | ????????????????# " ##" ""??????????????????? | | ????????????????### """""" ?????????????????? | | ??????????????????# """"#???????????????????? | | ??????????????????## """#???????????????????? | | ???????????????????### "" #???????????????????? | | ?????????????????????## ""###???????????????????? | | ??????????????????????######?????????????????????? | | ?????????????????????????????????????????????????? | | ?????????????????????????????????????????????????? | | ?????????????????????????????????????????????????? | | ?????????????????????????????????????????????????? | | ?????????????????????????????????????????????????? | | ?????????????????????????????????????????????????? | | ?????????????????????????????????????????????????? | | ?????????????????????????????????????????????????? | | ?????????????????????????????????????????????????? | | ?????????????????????????????????????????????????? | | ?????????????????????????????????????????????????? | | ?????????????????????????????????????????????????? | | ?????????????????????????????????????????????????? | | ?????????????????????????????????????????????????? | | | +----------------------------------------------------+ Best States ------------- Heat Dissipation 35 Energy Generation 10 Energy Capacity 250 Matter Stores 300 Matter Capacity 300 Sight Range 16 Terrain Scan Density 10 Armor Coverage 150 Resistance: KI 35 Resistance: TH 35 Resistance: EX 35 Resistance: EM 35 Resistance: I 35 Resistance: S 35 Resistance: P 35 Evasion (%) 50 Recoil Reduction 3 Offensive Hacking 20 Item Schematics ----------------- None Robot Schematics ------------------ None Fabricated ------------ Nothing Repaired ---------- Nothing Studied --------- None Alien Tech Used ----------------- None Achievements -------------- None Challenges ------------ None Game ------ Seed MetaFlakGuard Manual? 0 Play Time 00:11:53 Cumulative 100.1 hours Start 2025.11.17 @ 11:09:10 End 2025.11.17 @ 11:16:55 Sessions 1 Manual Loads 0 Difficulty Explorer Special Mode None Game No. 113 Rogue 0 Adventurer 0 Explorer 113 Win Type - Total 0 Types 0/0/0/0/0/0/0/0/0/0 Lore% 60 Gallery% 60 Achievement% 46 Wizard Run 0 Options --------- Layout 1 ASCII 0 Keyboard 0 Movement Mouse Keybinds 0 Fullscreen 1 Font 24/Smallcaps Map View 50x35 Zoom Use 0% Tactical HUD 1 Map Filters NONE Filters NONE Steam 1 RUN: f78f030f-bf0c-48f9-aa7c-5e725ec459bc